[Event "Hungarian U20 Junior-ch Men 2024"]
[Site "Budapest"]
[Date "2024.03.11"]
[Round "1.1"]
[White "Pasztor, Balazs"]
[Black "Karacsonyi, Gellert"]
[Result "1-0"]
[ECO "B76"]
[WhiteElo "2406"]
[BlackElo "2386"]
[Annotator "TA"]
[PlyCount "77"]
[EventDate "2024.03.10"]
[EventCountry "HUN"]
[SourceTitle "playchess.com"]
[Source "ChessBase"]
[SourceQuality "1"]
[TimeControl "40/5400+30:1800+30"]

{[%evp 28,77,49,48,60,18,58,46,52,39,39,0,5,0,38,59,51,39,59,67,77,80,90,51,72,83,107,111,122,135,108,134,257,265,279,256,409,409,513,521,741,731,745,744,1274,1283,1547,1667,1483,1434,1307,1137]} 1. e4 {[%emt 0:00:35]} c5 {[%emt 0:00:38]} 2. Nf3 {[%emt 0:00:06]} d6 {[%emt 0:00:07]} 3. d4 {[%emt 0:00:07]} cxd4 {[%emt 0:00:05]} 4. Nxd4 {[%emt 0:00:03]} Nf6 {[%emt 0:00:11]} 5. Nc3 {[%emt 0:00:05]} g6 {[%emt 0:00:09]} 6. Be3 {[%emt 0:00:23]} Bg7 {[%emt 0:00:11]} 7. f3 {[%emt 0:00:30]} O-O {[%emt 0:00:09]} 8. Qd2 {[%emt 0:00:03]} Nc6 {[%emt 0:00:11]} 9. O-O-O {[%emt 0:00:24]} d5 {[%emt 0:00:28]} 10. exd5 {[%emt 0:00:43]} Nxd5 {[%emt 0:00:13]} 11. Nxc6 {[%emt 0:00:44]} bxc6 {[%emt 0:00:08]} 12. Bd4 {[%emt 0:00:23]} e5 {[%emt 0:00:52]} 13. Bc5 {[%emt 0:00:27]} Be6 {[%emt 0:00:26]} 14. Ne4 {[%emt 0:00:27]} Re8 {[%emt 0:00:16]} 15. h4 {[%emt 0:01:38]} h5 {[%emt 0:00:09]} 16. Kb1 {[%emt 0:05:55]} Nf4 {[%emt 0:02:09]} 17. g3 {[%emt 0:10:03]} Qxd2 {[%emt 0:04:03] White is slightly better.} 18. Rxd2 {[%emt 0:03:28]} (18. Nxd2 $5 Nd5 $8 19. Ne4 $11) 18... Nd5 {[%emt 0:00:19][%cal Bf4d5,Bd5f6,Bf6d7][%mdl 32]} 19. Rhh2 {[%emt 0:12:43]} (19. Bc4 $5) 19... Red8 {[%emt 0:08:09]} 20. c4 {[%emt 0:07:57]} Nf6 {[%emt 0:07:13]} (20... Bf5 $5) 21. Rxd8+ {[%emt 0:04:40]} Rxd8 {[%emt 0:00:15]} 22. Rd2 {[%emt 0:00:43]} (22. Bxa7 $2 {is the wrong capture.} Rd1+ 23. Kc2 Rxf1 $19) 22... Rxd2 {[%emt 0:00:46]} 23. Nxd2 {[%emt 0:00:05]} a6 {[%emt 0:04:27]} 24. Kc2 {[%emt 0:11:28]} Nd7 {[%emt 0:03:59]} 25. Be3 {[%emt 0:06:00]} f5 {[%emt 0:06:48]} 26. b4 {[%emt 0:04:29]} f4 {[%emt 0:08:55]} 27. gxf4 {[%emt 0:02:35]} Bh6 {[%emt 0:00:26]} 28. Ne4 {[%emt 0:08:49]} exf4 {[%emt 0:00:39] [#]} 29. Bd4 {[%emt 0:00:35]} Bg7 {[%emt 0:14:01]} (29... g5 $16) 30. Bxg7 $18 {[%emt 0:03:49]} Kxg7 {[%emt 0:00:02][%mdl 4096] Endgame. KBN-KBN} 31. Kc3 {[%emt 0:00:27]} Ne5 {[%emt 0:06:23]} (31... c5 $142 32. bxc5 Nb8) 32. Ng5 {[%emt 0:01:08]} Bf5 {[%emt 0:00:37]} 33. Kd4 {[%emt 0:00:29] White is clearly winning.} Nf7 {[%emt 0:15:30]} 34. Nxf7 {[%emt 0:00:16]} Kxf7 {[%emt 0:00:06]} 35. Ke5 {[%emt 0:00:07]} Ke7 {[%emt 0:01:10]} 36. c5 {[%emt 0:00:41]} Bc8 {[%emt 0:00:08]} 37. Kxf4 {[%emt 0:00:09]} Kf6 {[%emt 0:00:06]} 38. a3 {[%emt 0:00:13]} Bb7 {[%emt 0:00:11]} 39. Bh3 {[%emt 0:00:00] Weighted Error Value: White=0.09 (flawless) /Black=0.36.  Mistake:       	---       	Black=2      Inaccurate:     	White=3     	Black=3      OK:         	White=9     	Black=4      Best:        	White=2     	Black=1} 1-0

[Event "Hungarian U20 Junior-ch Men 2024"]
[Site "Budapest"]
[Date "2024.03.11"]
[Round "1.2"]
[White "Juhasz, Agoston"]
[Black "Szikszai, Bertalan"]
[Result "1-0"]
[ECO "B51"]
[WhiteElo "2406"]
[BlackElo "2312"]
[Annotator "TA"]
[PlyCount "99"]
[EventDate "2024.03.10"]
[EventCountry "HUN"]
[SourceTitle "playchess.com"]
[Source "ChessBase"]
[SourceQuality "1"]
[TimeControl "40/5400+30:1800+30"]

{[%evp 14,99,15,16,0,8,28,36,28,24,25,22,25,28,29,22,19,22,25,28,41,39,41,40,45,26,41,22,31,41,50,-14,0,-6,20,0,41,57,50,64,172,93,310,313,337,270,457,489,579,507,536,531,497,435,790,714,882,883,864,698,691,692,680,674,855,481,1255,1166,2172,2466,1373,1387,1964,1960,1605,1737,1781,1772,12795,10314,29976,29977,29977,29978,29977,29978,29978,29977]} 1. e4 {[%emt 0:00:35]} c5 {[%emt 0:00:50]} 2. Nf3 {[%emt 0:00:12]} d6 {[%emt 0:00:08]} 3. Bb5+ {[%emt 0:00:44]} Nd7 {[%emt 0:00:26]} 4. O-O {[%emt 0:00:35]} a6 {[%emt 0:00:18]} 5. Bd3 {[%emt 0:00:59]} Ngf6 {[%emt 0:00:25]} 6. Re1 {[%emt 0:00:22] B51: Sicilian: Moscow Variation (3 Bb5+) without 3...Bd7.} e6 {[%emt 0:00:22]} 7. Bf1 $1 {[%emt 0:01:01][%mdl 4] is more profitable than 7.c3 at the moment.} Be7 {[%emt 0:01:32]} 8. d4 {[%emt 0:03:45]} cxd4 {[%emt 0:00:20]} 9. Nxd4 {[%emt 0:01:00]} O-O {[%emt 0:00:59]} 10. c4 {[%emt 0:00:53]} Qc7 {[%emt 0:00:36]} 11. b3 {[%emt 0:01:21]} b6 {[%emt 0:01:21]} 12. Bb2 {[%emt 0:00:45]} Bb7 {[%emt 0:00:15]} 13. Nc3 $146 {[%emt 0:04:56]} ({Predecessor:} 13. f3 Rfe8 14. Nc3 Rac8 15. Rc1 Qb8 16. Kh1 Bd8 17. Bd3 Bc7 18. Bb1 h6 19. Qc2 {1-0 Abdumalik,Z (2491)-Vantika,A (2381) Wch Blitz (Women) 2021 (7)}) 13... Rfe8 {[%emt 0:03:28]} 14. Qd2 {[%emt 0:05:30]} Rac8 {[%emt 0:02:41]} 15. Rad1 {[%emt 0:02:19]} Nc5 {[%emt 0:04:59]} 16. f3 {[%emt 0:02:34]} Bf8 {[%emt 0:04:32]} 17. Kh1 {[%emt 0:05:40]} Ncd7 {[%emt 0:15:46]} 18. Qf2 {[%emt 0:11:06]} Ne5 {[%emt 0:03:06]} 19. Rc1 {[%emt 0:06:42]} Nfd7 {[%emt 0:04:29]} 20. Qg3 {[%emt 0:02:59]} Ng6 {[%emt 0:05:11]} 21. Red1 {[%emt 0:07:18]} h5 {[%emt 0:03:04]} 22. f4 {[%emt 0:11:11]} ({Better is} 22. Rc2 $14) 22... Nf6 {[%emt 0:11:46]} 23. Re1 {[%emt 0:03:32]} e5 {[%emt 0:05:53]} 24. fxe5 {[%emt 0:01:33]} Nxe5 {[%emt 0:05:04]} 25. Nd5 {[%emt 0:02:47]} Nxd5 {[%emt 0:02:19]} 26. exd5 {[%emt 0:01:15]} Qd7 {[%emt 0:01:04] [#]} (26... g6 $1 $14) 27. Nf3 {[%emt 0:02:28]} (27. Be2 $1 $18) 27... Ng4 $2 {[%emt 0:09:16]} (27... Qg4 $16 {might work better.}) 28. h3 $18 {[%emt 0:02:30]} Nh6 {[%emt 0:00:04]} 29. Bd3 {[%emt 0:02:17]} b5 $2 {[%emt 0:03:18]} (29... Rxe1+ 30. Rxe1 Re8) 30. Ng5 $18 {[%emt 0:02:39]} bxc4 {[%emt 0:03:46]} 31. bxc4 {[%emt 0:03:12]} Nf5 {[%emt 0:02:48]} 32. Qf3 {[%emt 0:01:51]} g6 {[%emt 0:00:16]} 33. g4 {[%emt 0:02:23]} Ng7 {[%emt 0:00:52]} (33... hxg4 $142 34. hxg4 Nh6) 34. Rf1 $18 {[%emt 0:02:17]} Re7 {[%emt 0:00:55]} 35. gxh5 {[%emt 0:01:11]} Nf5 {[%emt 0:03:40]} 36. Ne4 {[%emt 0:04:26]} Bg7 {[%emt 0:01:54]} 37. Bxg7 {[%emt 0:01:09]} Kxg7 {[%emt 0:00:05]} 38. Rg1 {[%emt 0:00:29]} Rh8 {[%emt 0:00:58]} 39. Rcf1 {[%emt 0:00:42]} Bc8 {[%emt 0:00:18]} (39... Re5 $142 40. Nxd6 Qxd6 (40... Nxd6 $2 {perishes.} 41. Qf6+ Kf8 42. Qxh8+ $18)) 40. hxg6 $18 {[%emt 0:00:00]} fxg6 {[%emt 0:00:00]} 41. Rxg6+ {[%emt 0:07:10]} Kxg6 {[%emt 0:05:32]} 42. Qg4+ {[%emt 0:02:18]} Kf7 {[%emt 0:00:05]} 43. Rxf5+ {[%emt 0:00:28]} Ke8 {[%emt 0:00:53]} 44. Nf6+ {[%emt 0:01:03]} Kd8 {[%emt 0:00:04]} 45. Nxd7 {[%emt 0:00:10]} Bxd7 {[%emt 0:00:03]} 46. Qg3 {[%emt 0:07:20]} Bxf5 {[%emt 0:02:05]} 47. Qxd6+ {[%emt 0:02:07]} Bd7 {[%emt 0:00:26]} 48. Qb6+ {[%emt 0:00:13]} ({Not} 48. Qxa6 Rxh3+ (48... Bxh3 $2 {too greedy.} 49. Qf6 $18) 49. Kg2 Rxd3 $11) 48... Kc8 {[%emt 0:00:54]} 49. Qxa6+ {[%emt 0:00:12]} Kd8 {[%emt 0:00:08]} 50. Qa5+ {[%emt 0:00:15]} 1-0

[Event "Hungarian U20 Junior-ch Men 2024"]
[Site "Budapest"]
[Date "2024.03.11"]
[Round "1.3"]
[White "Kolimar, Kristof Pal"]
[Black "Gombocz, Ferenc Jr."]
[Result "0-1"]
[ECO "D02"]
[WhiteElo "2282"]
[BlackElo "2351"]
[Annotator "TA"]
[PlyCount "82"]
[EventDate "2024.03.10"]
[EventCountry "HUN"]
[SourceTitle "playchess.com"]
[Source "ChessBase"]
[SourceQuality "1"]
[TimeControl "40/5400+30:1800+30"]

{[%evp 9,82,0,0,6,0,0,0,0,0,0,0,0,0,0,0,-8,12,-23,-5,-9,-19,-11,-6,-48,-26,-68,-21,-52,-40,-63,-75,-84,-28,-85,-92,-83,-84,-91,-91,-97,-93,-99,-109,-162,-168,-160,-159,-207,-207,-207,-196,-202,-195,-195,-187,-187,-180,-180,-158,-337,-334,-322,-315,-562,-438,-702,-702,-702,-702,-702,-702,-702,-702,-702,-463]} 1. Nf3 {[%emt 0:00:37]} d5 {[%emt 0:00:37][%cal Bd7d5,Bd5c4][%mdl 32]} 2. d4 {[%emt 0:00:07]} Nf6 {[%emt 0:00:05]} 3. c4 {[%emt 0:00:28]} c6 {[%emt 0:00:20]} 4. g3 {[%emt 0:00:18]} dxc4 {[%emt 0:09:14]} 5. Bg2 {[%emt 0:00:05]} b5 {[%emt 0:00:27]} 6. Ne5 {[%emt 0:01:15]} Bb7 {[%emt 0:00:28]} 7. a4 {[%emt 0:00:36] And now axb5 would win.} a6 {[%emt 0:00:45]} 8. b3 {[%emt 0:00:26] The position is equal.} cxb3 $1 {[%emt 0:01:37]} 9. Qxb3 {[%emt 0:00:06][%csl Ge5][%cal Rb3f7]} e6 {[%emt 0:00:07]} 10. Bb2 {[%emt 0:00:23]} Be7 {[%emt 0:04:25]} 11. O-O {[%emt 0:00:31]} O-O {[%emt 0:00:11]} 12. Nd2 {[%emt 0:00:15]} Ra7 {[%emt 0:09:38]} 13. Rfc1 {[%emt 0:14:51] [#]} c5 $1 {[%emt 0:03:02]} 14. axb5 {[%emt 0:22:14] Black must now prevent b6.} Bxg2 {[%emt 0:00:19]} 15. Kxg2 {[%emt 0:00:02] Strongly threatening b6.} Rb7 {[%emt 0:00:32]} 16. Qd3 {[%emt 0:14:56]} Rxb5 {[%emt 0:01:10]} 17. Ndc4 {[%emt 0:05:16]} Nfd7 {[%emt 0:15:54]} (17... Qd5+ $15 18. Kg1 cxd4 19. Qxd4 a5) 18. Rd1 {[%emt 0:15:41]} cxd4 {[%emt 0:14:47]} 19. Nxd7 {[%emt 0:01:36]} Qxd7 {[%emt 0:00:35]} 20. Bxd4 {[%emt 0:01:22]} Nc6 {[%emt 0:04:07]} (20... Qb7+ $17 21. Qf3 Qxf3+ 22. exf3 Rc8) 21. Qe4 {[%emt 0:03:15]} (21. Be3 $1 $11 Qc8 22. Nd6 Bxd6 23. Qxd6) 21... Qd5 $17 {[%emt 0:04:39]} 22. Qxd5 {[%emt 0:02:39]} exd5 {[%emt 0:00:34]} 23. Ne5 {[%emt 0:02:21]} Nxd4 {[%emt 0:05:33]} 24. Rxd4 {[%emt 0:00:04]} Bf6 $36 {[%emt 0:00:22][%mdl 2048] Black has strong initiative.} 25. f4 {[%emt 0:00:09]} a5 {[%emt 0:00:54]} 26. Rad1 {[%emt 0:01:05]} (26. Rda4 $17) 26... Bxe5 {[%emt 0:00:32]} 27. fxe5 {[%emt 0:00:15]} Re8 {[%emt 0:00:10]} 28. Rxd5 {[%emt 0:00:14]} (28. Kf2 $17 {was called for.}) 28... Rxd5 $19 {[%emt 0:00:08]} (28... Rxe5 29. Rd8+) 29. Rxd5 $17 {[%emt 0:00:02][%mdl 4096] Endgame. [#] KR-KR} Ra8 {[%emt 0:00:07]} 30. Rd3 {[%emt 0:01:40]} a4 {[%emt 0:00:04] Threatens to win with ...a3.} 31. Ra3 {[%emt 0:00:16]} Kf8 {[%emt 0:00:10]} 32. Kf3 {[%emt 0:00:59]} Ke7 {[%emt 0:00:02]} 33. Ke4 {[%emt 0:06:22]} Ke6 {[%emt 0:00:04]} 34. h4 $2 {[%emt 0:00:37] This move loses the game for White.} (34. g4 $17) 34... h5 $19 {[%emt 0:01:06]} 35. Kf4 {[%emt 0:02:20]} Ra5 {[%emt 0:00:10][%cal Oe6d5]} 36. e3 $2 {[%emt 0:01:03]} (36. Ke4) 36... g6 {[%emt 0:00:08] Black is clearly winning.} ({Less strong is} 36... Rxe5 37. Rxa4 Rf5+ 38. Ke4 $11) 37. e4 {[%emt 0:01:46]} (37. Ke4 $142) 37... Ra7 {[%emt 0:00:08]} ({And not} 37... Rxe5 38. Rxa4 Rb5 39. Rc4 $11) 38. Kf3 {[%emt 0:00:12]} Kxe5 {[%emt 0:00:03]} 39. Ke3 {[%emt 0:00:07]} Ra6 {[%emt 0:00:14]} 40. Kd3 {[%emt 0:00:00]} Rd6+ {[%emt 0:00:00]} 41. Ke3 {[%emt 0:01:13]} Rd4 {[%emt 0:00:18] Weighted Error Value: White=0.33/Black=0.10 (very precise) .  Loses game:     	White=1     	---        Mistake:       	White=5     	Black=2      Inaccurate:     	White=4     	---        OK:         	White=9     	Black=16     Best:        	White=1     	Black=3      Strong:       	---       	Black=1} 0-1

[Event "Hungarian U20 Junior-ch Men 2024"]
[Site "Budapest"]
[Date "2024.03.11"]
[Round "1.4"]
[White "Bodrogi, Bendeguz"]
[Black "Pasti, Aron"]
[Result "1-0"]
[ECO "A05"]
[WhiteElo "2316"]
[BlackElo "2373"]
[Annotator "TA"]
[PlyCount "85"]
[EventDate "2024.03.10"]
[EventCountry "HUN"]
[SourceTitle "playchess.com"]
[Source "ChessBase"]
[SourceQuality "1"]
[TimeControl "40/5400+30:1800+30"]

{[%evp 14,85,32,-4,8,-14,-10,-25,10,17,0,4,37,9,24,19,16,15,23,20,40,0,2,11,10,11,108,0,0,0,0,0,0,-14,17,31,14,28,23,25,77,89,80,84,77,78,169,172,393,383,394,338,401,393,508,507,510,496,484,451,3191,2950,29986,29987,29987,29974,29970,29968,6916,6299,7356,7285,5539,2839]} 1. Nf3 {[%emt 0:00:46]} Nf6 {[%emt 0:00:34]} 2. g3 {[%emt 0:00:10]} g6 {[%emt 0:00:19]} 3. Bg2 {[%emt 0:02:03]} Bg7 {[%emt 0:00:07]} 4. O-O {[%emt 0:00:12]} O-O {[%emt 0:00:31]} 5. d4 {[%emt 0:00:08]} d6 {[%emt 0:00:25]} 6. Nc3 {[%emt 0:00:08]} Nbd7 {[%emt 0:00:12]} 7. a4 $1 {[%emt 0:00:06][%mdl 4] is now more promising than 7.e4.} d5 {[%emt 0:01:58] A49: 1 d4 Nf6 2 Nf3 g6 3 g3: Anti-King's Indian systems.} 8. e4 $146 {[%emt 0:23:15]} ({Predecessor:} 8. a5 Nb8 9. Ne5 Bf5 10. Bf4 Na6 11. Qd2 c6 12. Rfe1 Nd7 13. Nf3 Nf6 14. Ne5 Nd7 15. Rad1 Nxe5 16. dxe5 Qxa5 {0-1 Petrov,N (2464)-Grigoriants,S (2587) Reykjavik op 2016 (10)}) 8... dxe4 {[%emt 0:14:54]} 9. Ng5 {[%emt 0:00:44]} e5 {[%emt 0:04:05]} 10. d5 {[%emt 0:19:21]} Nb6 {[%emt 0:11:40]} 11. Ngxe4 {[%emt 0:00:46]} Nxe4 {[%emt 0:00:03]} 12. Nxe4 {[%emt 0:08:13]} f5 {[%emt 0:00:07]} 13. a5 {[%emt 0:03:47]} (13. Bg5 $5 Qe8 14. a5 $14) 13... Nc4 {[%emt 0:01:34]} (13... Nxd5 $2 14. Bg5 Qe8 (14... Qd7 $2 15. Nc5 $18) 15. Qxd5+ $18) 14. Qe2 {[%emt 0:00:52]} (14. d6 {feels hotter.} Nxd6 15. Bg5 Qd7 16. Nxd6 cxd6 17. Qd5+) 14... Nd6 {[%emt 0:01:16]} 15. Nxd6 {[%emt 0:02:35]} cxd6 {[%emt 0:00:01]} 16. c4 {[%emt 0:00:59]} Qf6 {[%emt 0:05:51]} 17. f4 {[%emt 0:06:31]} e4 {[%emt 0:00:06]} 18. Ra2 {[%emt 0:03:51]} Bd7 {[%emt 0:00:23]} 19. Be3 {[%emt 0:00:09]} b5 {[%emt 0:04:22]} (19... b6 $1 $11) 20. axb6 {[%emt 0:02:44]} ({Only move:} 20. cxb5 $16 Rfb8 21. b6) 20... axb6 $11 {[%emt 0:00:01]} 21. Rfa1 {[%emt 0:00:11]} Rxa2 {[%emt 0:04:34]} 22. Rxa2 {[%emt 0:00:09]} Rb8 $1 {[%emt 0:00:04]} 23. Ra6 {[%emt 0:10:18]} Qd8 {[%emt 0:05:19]} 24. b4 {[%emt 0:01:16]} b5 {[%emt 0:03:46]} 25. c5 {[%emt 0:03:14]} dxc5 {[%emt 0:00:07]} 26. Bxc5 {[%emt 0:04:33]} (26. bxc5 $2 b4 27. c6 b3 $19) 26... Bc8 {[%emt 0:06:29]} (26... Ra8 $11 27. Qa2 Rxa6 28. Qxa6 Qe8) 27. Rd6 $16 {[%emt 0:00:05]} Qe8 {[%emt 0:00:37]} 28. Bf1 {[%emt 0:00:22]} Bf8 {[%emt 0:01:41] [#]} 29. Rf6 $1 {[%emt 0:02:46]} Be7 {[%emt 0:17:18]} (29... Bg7 $16 30. Rc6 h5) 30. Rc6 $18 {[%emt 0:00:10]} Bb7 $2 {[%emt 0:02:47]} (30... Bd7 31. Rc7 Bf6) 31. Re6 $18 {[%emt 0:00:15]} Bxc5+ {[%emt 0:00:02]} 32. bxc5 {[%emt 0:00:08]} Qf8 {[%emt 0:02:04]} 33. Rd6 {[%emt 0:00:59]} (33. Qxb5 Bxd5 34. Rb6 Rc8 $16) (33. d6 Bc6 34. Qb2 Rb7 $18) 33... Ba8 {[%emt 0:04:20]} 34. Qb2 {[%emt 0:01:01]} e3 {[%emt 0:04:08]} 35. Qe5 {[%emt 0:01:41]} (35. Bxb5 Qe7 36. Qa1 (36. Rd7 $2 Qxd7 37. Qe5 Rxb5 $19) 36... Rxb5 $11) 35... Re8 {[%emt 0:02:42]} 36. Re6 {[%emt 0:00:45]} Rd8 {[%emt 0:00:01]} (36... Rxe6 $142 37. Qxe6+ Qf7) 37. d6 $18 {[%emt 0:00:24]} ({Inferior is} 37. Bxb5 Qxc5 (37... Rxd5 38. Qxe3 Qxc5 39. Be2 $11) 38. d6 (38. Qxe3 Qxb5 $11) 38... Qc1+ 39. Bf1 Qc6 40. Qxe3 (40. Rxg6+ hxg6 41. Qe6+ Kg7 $11) 40... Rb8 $11) 37... Be4 {[%emt 0:00:10]} 38. Bxb5 {[%emt 0:03:12]} Rb8 {[%emt 0:00:49]} 39. Re8 {[%emt 0:00:04]} Qxe8 {[%emt 0:00:04]} 40. Qxe8+ {[%emt 0:00:00]} (40. Bc4+ Qf7 41. Bxf7+ Kxf7 42. Qe7+ Kg8 43. Qe6+ Kf8 44. Qf6+ Kg8 $18) 40... Rxe8 {[%emt 0:00:00]} 41. Bxe8 {[%emt 0:00:10]} Kf8 {[%emt 0:00:08]} 42. Bb5 {[%emt 0:00:31]} Kf7 {[%emt 0:00:23]} 43. c6 1-0

[Event "Hungarian U20 Junior-ch Men 2024"]
[Site "Budapest"]
[Date "2024.03.11"]
[Round "1.5"]
[White "Palczert, Matyas"]
[Black "Tancsa, Tamas"]
[Result "1/2-1/2"]
[ECO "C47"]
[WhiteElo "2297"]
[BlackElo "2273"]
[Annotator "TA"]
[PlyCount "77"]
[EventDate "2024.03.10"]
[EventCountry "HUN"]
[SourceTitle "playchess.com"]
[Source "ChessBase"]
[SourceQuality "1"]
[TimeControl "40/5400+30:1800+30"]

{[%evp 9,77,39,20,41,22,14,22,2,3,0,0,0,0,0,0,0,0,0,0,0,0,0,17,12,18,24,61,27,22,24,28,2,32,25,30,14,33,20,15,7,18,0,0,0,16,-9,0,-12,-6,-70,0,-7,-18,-123,0,0,0,0,0,0,0,0,0,0,0,0,0,0,0,0]} 1. e4 {[%emt 0:00:38]} e5 {[%emt 0:01:08]} 2. Nf3 {[%emt 0:00:12]} Nc6 {[%emt 0:00:18]} 3. Nc3 {[%emt 0:00:23]} Nf6 {[%emt 0:00:13]} 4. Nd5 {[%emt 0:00:48]} Nb4 {[%emt 0:00:34]} 5. Nxb4 {[%emt 0:02:56]} Bxb4 {[%emt 0:02:09]} 6. c3 {[%emt 0:00:41]} Be7 {[%emt 0:05:31]} 7. Nxe5 {[%emt 0:09:58]} Nxe4 {[%emt 0:03:43]} 8. d3 {[%emt 0:01:58]} Nf6 {[%emt 0:01:57]} 9. d4 {[%emt 0:02:07]} d6 {[%emt 0:23:48]} 10. Nf3 {[%emt 0:06:09]} O-O {[%emt 0:00:11]} 11. Bd3 {[%emt 0:00:27]} Bg4 {[%emt 0:00:18]} 12. h3 {[%emt 0:01:14]} Bh5 {[%emt 0:02:35]} 13. O-O {[%emt 0:08:02]} Qd7 {[%emt 0:02:38]} 14. Re1 {[%emt 0:07:45]} Rfe8 {[%emt 0:01:15]} 15. Bg5 {[%emt 0:12:01]} Nd5 {[%emt 0:13:47] [#] Zielt auf ...Bxg5 ab.} 16. Bd2 {[%emt 0:04:22]} Bf6 {[%emt 0:07:07]} 17. Be4 {[%emt 0:03:36]} Nb6 {[%emt 0:06:07]} 18. Qc2 {[%emt 0:05:17]} Bg6 {[%emt 0:06:12]} 19. Bxg6 {[%emt 0:00:14]} hxg6 {[%emt 0:00:49]} 20. b3 {[%emt 0:01:51]} a5 {[%emt 0:01:33]} 21. a4 {[%emt 0:02:44]} Nd5 {[%emt 0:16:07]} 22. Qd3 {[%emt 0:03:22]} b6 {[%emt 0:01:43]} 23. Re4 {[%emt 0:01:45]} c6 {[%emt 0:01:45]} 24. Rae1 {[%emt 0:01:04]} Nc7 {[%emt 0:00:02]} 25. Bg5 {[%emt 0:04:09]} Rxe4 {[%emt 0:00:54]} 26. Rxe4 {[%emt 0:00:09]} Re8 {[%emt 0:00:33]} 27. Bxf6 {[%emt 0:01:07]} gxf6 {[%emt 0:00:31]} (27... Rxe4 {vereinfacht} 28. Qxe4 gxf6 29. Qd3 Kf8) 28. Rh4 {[%emt 0:03:26]} Qe6 {[%emt 0:00:31]} 29. Qd2 {[%emt 0:01:47]} (29. c4 $11) 29... f5 {[%emt 0:00:28]} (29... Qxb3 30. Qh6 Qd1+ 31. Kh2) (29... g5 $1 $15 30. Rg4 (30. Rh6 $2 Kg7 $19) 30... Qxb3) 30. d5 {[%emt 0:11:31]} Nxd5 {[%emt 0:00:29]} (30... cxd5 31. Qd4 f6 32. Rh6 $18 (32. Qxb6 g5 $18)) (30... Qxd5 31. Qh6) 31. Qd4 {[%emt 0:00:45] [#]} (31. c4 $1 $11 Nf6 32. Qh6) 31... Qf6 {[%emt 0:00:31]} (31... Nf6 $1 $17 {Droht stark ...c5.} 32. Qxb6 c5) 32. c4 $1 $11 {[%emt 0:00:10] Die Stellung ist ausgeglichen.} Qxd4 {[%emt 0:00:30]} 33. Rxd4 {[%emt 0:00:01][%mdl 4096] Endspiel. KRN-KRN} Nb4 {[%emt 0:00:31]} 34. Rxd6 {[%emt 0:00:08]} Re2 {[%emt 0:00:31]} 35. Nd4 {[%emt 0:01:11]} Rb2 {[%emt 0:00:27]} 36. Nxc6 {[%emt 0:02:37]} Nxc6 {[%emt 0:00:01]} 37. Rxc6 {[%emt 0:00:06]} Rxb3 {[%emt 0:00:06]} 38. c5 {[%emt 0:00:04]} b5 {[%emt 0:00:05]} 39. axb5 {[%emt 0:00:40] Gewichteter Fehlerwert: Weiß=0.15 (sehr präzise) /Schwarz=0.12 (sehr präzise) .  Fehler:       	Weiß=2     	Schwarz=2     Ungenau:       	Weiß=2     	Schwarz=2     OK:         	Weiß=9     	Schwarz=20    Bester:       	Weiß=1     	---        Stark:        	Weiß=1     	---} 1/2-1/2